[Event "European Online Club-ch-H 2021"]
[Site "Online"]
[Date "2021.03.27"]
[Round "9.13"]
[White "Manik, Mikulas"]
[Black "Banusz, Tamas"]
[Result "1/2-1/2"]
[ECO "C47"]
[WhiteElo "2353"]
[BlackElo "2631"]
[Annotator "ChessBase"]
[PlyCount "110"]
[EventDate "2021.03.27"]
[EventType "team-tourn"]
[EventCountry "NET"]
[SourceTitle "playchess.com"]
[Source "ChessBase"]
[SourceQuality "1"]
[TimeControl "900+5"]

1. e4 {[%emt 0:00:00]} e5 {[%emt 0:00:03]} 2. Nf3 {[%emt 0:00:03]} Nc6 {[%emt 0:00:02]} 3. d4 {[%emt 0:00:01]} exd4 {[%emt 0:00:06]} 4. Nxd4 {[%emt 0:00:02]} Nf6 {[%emt 0:00:01]} 5. Nc3 {[%emt 0:00:02]} Bb4 {[%emt 0:00:08]} 6. Nxc6 {[%emt 0:00:03]} bxc6 {[%emt 0:00:01]} 7. Bd3 {[%emt 0:00:02]} d5 {[%emt 0:00:02]} 8. Bd2 {[%emt 0:00:03]} O-O {[%emt 0:00:10]} 9. O-O {[%emt 0:00:08]} Rb8 {[%emt 0:00:04]} 10. exd5 {[%emt 0:00:26]} cxd5 {[%emt 0:00:04]} 11. a3 {[%emt 0:00:59]} Bd6 {[%emt 0:01:34]} 12. Nb5 {[%emt 0:00:50]} Be5 {[%emt 0:00:41]} 13. Rb1 {[%emt 0:00:33]} Bd7 {[%emt 0:00:45]} 14. Nc3 {[%emt 0:01:20]} c5 {[%emt 0:00:12]} 15. Bg5 {[%emt 0:03:28]} c4 {[%emt 0:00:27]} 16. Be2 {[%emt 0:00:23]} Be6 {[%emt 0:00:05]} 17. Bf3 {[%emt 0:00:07]} d4 {[%emt 0:00:19]} 18. Ne4 {[%emt 0:00:07]} h6 {[%emt 0:00:12]} 19. Bh4 {[%emt 0:00:03]} g5 {[%emt 0:00:06]} 20. Bg3 {[%emt 0:00:06]} Bxg3 {[%emt 0:00:03]} 21. Nxf6+ {[%emt 0:01:02]} Qxf6 {[%emt 0:00:03]} 22. hxg3 {[%emt 0:00:05]} Rfd8 {[%emt 0:00:13]} 23. Bg4 {[%emt 0:00:04]} Bxg4 {[%emt 0:01:11]} 24. Qxg4 {[%emt 0:00:04]} d3 {[%emt 0:00:01]} 25. cxd3 {[%emt 0:00:05]} cxd3 {[%emt 0:00:03]} 26. b4 {[%emt 0:00:05]} d2 {[%emt 0:00:12]} 27. Rfd1 {[%emt 0:00:04]} Rd3 {[%emt 0:00:17]} 28. Qe2 {[%emt 0:00:04]} Rbd8 {[%emt 0:00:04]} 29. a4 {[%emt 0:00:10]} Qc3 {[%emt 0:00:51]} 30. b5 {[%emt 0:00:23]} R3d6 {[%emt 0:00:49]} 31. Kh2 {[%emt 0:01:05]} Re6 {[%emt 0:00:23]} 32. Qf3 {[%emt 0:00:07]} Qa5 {[%emt 0:00:36]} 33. Rb2 {[%emt 0:00:08]} Rd4 {[%emt 0:02:05]} 34. Qb3 {[%emt 0:00:25]} Red6 {[%emt 0:00:44]} 35. Rc2 {[%emt 0:00:35]} Rd8 {[%emt 0:00:18]} 36. Rc4 {[%emt 0:02:09]} Rd3 {[%emt 0:01:11]} 37. Qc2 {[%emt 0:00:04]} R3d4 {[%emt 0:01:41]} 38. Rc6 {[%emt 0:01:05]} Qxa4 {[%emt 0:00:16]} 39. Rxd2 {[%emt 0:00:03]} Qxc2 {[%emt 0:00:39]} 40. Rdxc2 {[%emt 0:00:04]} Kg7 {[%emt 0:00:19]} 41. Ra6 {[%emt 0:00:08]} R8d7 {[%emt 0:00:07]} 42. b6 {[%emt 0:00:14]} axb6 {[%emt 0:00:05]} 43. Rxb6 {[%emt 0:00:02]} R4d6 {[%emt 0:00:11]} 44. Rxd6 {[%emt 0:00:03]} Rxd6 {[%emt 0:00:02]} 45. g4 {[%emt 0:00:02]} Kg6 {[%emt 0:00:05]} 46. f3 {[%emt 0:00:04]} h5 {[%emt 0:00:03]} 47. gxh5+ {[%emt 0:00:06]} Kxh5 {[%emt 0:00:02]} 48. g4+ {[%emt 0:00:12]} Kh4 {[%emt 0:00:09]} 49. Kg2 {[%emt 0:00:06]} f6 {[%emt 0:00:04]} 50. Rb2 {[%emt 0:00:06]} Rc6 {[%emt 0:00:02]} 51. Rd2 {[%emt 0:00:06]} Ra6 {[%emt 0:00:02]} 52. Re2 {[%emt 0:00:04]} Rb6 {[%emt 0:00:03]} 53. Rd2 {[%emt 0:00:02]} Ra6 {[%emt 0:00:01]} 54. Re2 {[%emt 0:00:02]} Rb6 {[%emt 0:00:02]} 55. Rd2 {[%emt 0:00:02]} Ra6 {[%emt 0:00:01]} 1/2-1/2

[Event "European Online Club-ch-H 2021"]
[Site "Online"]
[Date "2021.03.27"]
[Round "9.14"]
[White "Braun, Arik"]
[Black "Danada, Tomas"]
[Result "1-0"]
[ECO "A21"]
[WhiteElo "2609"]
[BlackElo "2321"]
[Annotator "ChessBase"]
[PlyCount "99"]
[EventDate "2021.03.27"]
[EventType "team-tourn"]
[EventCountry "NET"]
[SourceTitle "playchess.com"]
[Source "ChessBase"]
[SourceQuality "1"]
[TimeControl "900+5"]

1. c4 {[%emt 0:00:00]} e5 {[%emt 0:00:03]} 2. Nc3 {[%emt 0:00:02]} Bb4 {[%emt 0:00:02]} 3. Qc2 {[%emt 0:00:05]} Nf6 {[%emt 0:00:12]} 4. e3 {[%emt 0:00:02]} O-O {[%emt 0:00:04]} 5. Nge2 {[%emt 0:00:02]} Re8 {[%emt 0:00:03]} 6. a3 {[%emt 0:00:03]} Bf8 {[%emt 0:00:04]} 7. d3 {[%emt 0:00:13]} c6 {[%emt 0:00:13]} 8. d4 {[%emt 0:00:12]} d5 {[%emt 0:00:36]} 9. dxe5 {[%emt 0:01:18]} Rxe5 {[%emt 0:00:03]} 10. cxd5 {[%emt 0:00:01]} cxd5 {[%emt 0:00:39]} 11. Nd4 {[%emt 0:00:32]} Nc6 {[%emt 0:00:03]} 12. Be2 {[%emt 0:00:13]} Qb6 {[%emt 0:01:23]} 13. Nxc6 {[%emt 0:00:32]} bxc6 {[%emt 0:00:04]} 14. O-O {[%emt 0:00:02]} Bf5 {[%emt 0:00:14]} 15. Bd3 {[%emt 0:00:04]} Bxd3 {[%emt 0:00:12]} 16. Qxd3 {[%emt 0:00:01]} Rae8 {[%emt 0:00:40]} 17. b4 {[%emt 0:00:18]} a5 {[%emt 0:01:01]} 18. b5 {[%emt 0:01:11]} c5 {[%emt 0:00:27]} 19. Bb2 {[%emt 0:00:27]} Rh5 {[%emt 0:01:05]} 20. Ne2 {[%emt 0:01:11]} Bd6 {[%emt 0:01:02]} 21. h3 {[%emt 0:00:45]} Ne4 {[%emt 0:01:11]} 22. a4 {[%emt 0:00:59]} Re6 {[%emt 0:00:34]} 23. Nf4 {[%emt 0:00:56]} Bxf4 {[%emt 0:00:05]} 24. exf4 {[%emt 0:00:02]} Rg6 {[%emt 0:00:55]} 25. Rad1 {[%emt 0:01:06]} Qe6 {[%emt 0:01:44]} 26. Rfe1 {[%emt 0:01:09]} h6 {[%emt 0:00:46]} 27. Re3 {[%emt 0:00:55]} Qf5 {[%emt 0:00:33]} 28. Rf3 {[%emt 0:00:07]} d4 {[%emt 0:02:00]} 29. Re1 {[%emt 0:01:36]} Nd6 {[%emt 0:00:46]} 30. Bc1 {[%emt 0:00:16]} Qxd3 {[%emt 0:00:19]} 31. Rxd3 {[%emt 0:00:03]} Re6 {[%emt 0:00:22]} 32. Kf1 {[%emt 0:00:48]} Rd5 {[%emt 0:00:05]} 33. Rb3 {[%emt 0:00:56]} c4 {[%emt 0:00:04]} 34. Rb1 {[%emt 0:00:01]} c3 {[%emt 0:00:09]} 35. Rb3 {[%emt 0:00:07]} Nc4 {[%emt 0:00:05]} 36. Rd1 {[%emt 0:00:11]} c2 {[%emt 0:00:05]} 37. Rdd3 {[%emt 0:00:06]} Re4 {[%emt 0:00:05]} 38. b6 {[%emt 0:00:06]} Rd8 {[%emt 0:00:02]} 39. b7 {[%emt 0:00:09]} Rb8 {[%emt 0:00:01]} 40. f5 {[%emt 0:00:08]} Re7 {[%emt 0:00:04]} 41. Rxd4 {[%emt 0:00:02]} Ne5 {[%emt 0:00:14]} 42. Rc3 {[%emt 0:00:56]} Rexb7 {[%emt 0:00:02]} 43. Rxc2 {[%emt 0:00:02]} Rb1 {[%emt 0:00:03]} 44. Ke2 {[%emt 0:00:03]} R8b4 {[%emt 0:00:05]} 45. Rd8+ {[%emt 0:00:05]} Kh7 {[%emt 0:00:02]} 46. Rcc8 {[%emt 0:00:03]} g6 {[%emt 0:00:10]} 47. f6 {[%emt 0:00:05]} g5 {[%emt 0:00:05]} 48. Rg8 {[%emt 0:00:10]} Re4+ {[%emt 0:00:08]} 49. Be3 {[%emt 0:00:02]} Rb2+ {[%emt 0:00:02]} 50. Kd1 {[%emt 0:00:11]} 1-0

[Event "European Online Club-ch-H 2021"]
[Site "Online"]
[Date "2021.03.27"]
[Round "9.15"]
[White "Zambor, Norbert"]
[Black "Wagner, Dennis"]
[Result "0-1"]
[ECO "C84"]
[WhiteElo "2260"]
[BlackElo "2581"]
[Annotator "ChessBase"]
[PlyCount "124"]
[EventDate "2021.03.27"]
[EventType "team-tourn"]
[EventCountry "NET"]
[SourceTitle "playchess.com"]
[Source "ChessBase"]
[SourceQuality "1"]
[TimeControl "900+5"]

1. e4 {[%emt 0:00:00]} e5 {[%emt 0:00:03]} 2. Nf3 {[%emt 0:00:03]} Nc6 {[%emt 0:00:02]} 3. Bb5 {[%emt 0:00:02]} a6 {[%emt 0:00:01]} 4. Ba4 {[%emt 0:00:02]} Nf6 {[%emt 0:00:02]} 5. d4 {[%emt 0:00:01]} exd4 {[%emt 0:00:02]} 6. O-O {[%emt 0:00:04]} Be7 {[%emt 0:00:02]} 7. e5 {[%emt 0:00:05]} Ne4 {[%emt 0:00:02]} 8. Nxd4 {[%emt 0:00:02]} O-O {[%emt 0:00:05]} 9. Nf5 {[%emt 0:02:23]} d5 {[%emt 0:00:07]} 10. Bxc6 {[%emt 0:00:13]} bxc6 {[%emt 0:00:05]} 11. Nxe7+ {[%emt 0:00:03]} Qxe7 {[%emt 0:00:00]} 12. Re1 {[%emt 0:00:16]} Re8 {[%emt 0:00:17]} 13. f3 {[%emt 0:00:23]} Nd6 {[%emt 0:01:10]} 14. b3 {[%emt 0:01:15]} f6 {[%emt 0:01:15]} 15. Bb2 {[%emt 0:02:22]} Nf7 {[%emt 0:00:05]} 16. f4 {[%emt 0:00:22]} fxe5 {[%emt 0:00:03]} 17. fxe5 {[%emt 0:00:12]} Be6 {[%emt 0:01:00]} 18. Nd2 {[%emt 0:01:36]} Rad8 {[%emt 0:01:12]} 19. Kh1 {[%emt 0:00:42]} Nh6 {[%emt 0:00:17]} 20. Nf3 {[%emt 0:00:38]} c5 {[%emt 0:00:29]} 21. Qe2 {[%emt 0:01:38]} Bg4 {[%emt 0:02:22]} 22. Rf1 {[%emt 0:00:41]} Nf5 {[%emt 0:02:18]} 23. Rae1 {[%emt 0:01:06]} Qe6 {[%emt 0:01:07]} 24. Qf2 {[%emt 0:00:46]} d4 {[%emt 0:00:41]} 25. Bc1 {[%emt 0:00:39]} h6 {[%emt 0:00:24]} 26. Bf4 {[%emt 0:00:31]} Rf8 {[%emt 0:00:15]} 27. h3 {[%emt 0:00:43]} Bxf3 {[%emt 0:00:01]} 28. Qxf3 {[%emt 0:00:09]} Ne3 {[%emt 0:01:25]} 29. Rf2 {[%emt 0:00:05]} Rf7 {[%emt 0:01:56]} 30. Qg3 {[%emt 0:00:10]} Nd5 {[%emt 0:00:10]} 31. Bd2 {[%emt 0:00:10]} Rxf2 {[%emt 0:00:02]} 32. Qxf2 {[%emt 0:00:01]} Rf8 {[%emt 0:00:01]} 33. Qe2 {[%emt 0:00:11]} Rf5 {[%emt 0:00:24]} 34. Kg1 {[%emt 0:00:06]} Ne7 {[%emt 0:00:06]} 35. Qe4 {[%emt 0:00:07]} Nc6 {[%emt 0:00:06]} 36. Bf4 {[%emt 0:00:03]} Rf8 {[%emt 0:00:13]} 37. Bg3 {[%emt 0:00:03]} Ne7 {[%emt 0:00:03]} 38. Kh2 {[%emt 0:00:03]} Nd5 {[%emt 0:00:01]} 39. a3 {[%emt 0:00:07]} Ne3 {[%emt 0:00:02]} 40. Bf4 {[%emt 0:00:02]} Nd5 {[%emt 0:00:15]} 41. Bg3 {[%emt 0:00:02]} Rf7 {[%emt 0:00:01]} 42. b4 {[%emt 0:00:04]} cxb4 {[%emt 0:00:08]} 43. axb4 {[%emt 0:00:05]} Nxb4 {[%emt 0:00:01]} 44. Re2 {[%emt 0:00:15]} c5 {[%emt 0:00:05]} 45. Rf2 {[%emt 0:00:05]} Rxf2 {[%emt 0:00:03]} 46. Bxf2 {[%emt 0:00:02]} Nc6 {[%emt 0:00:04]} 47. Bg3 {[%emt 0:00:01]} a5 {[%emt 0:00:04]} 48. Qe2 {[%emt 0:00:10]} Nb4 {[%emt 0:00:08]} 49. Qb5 {[%emt 0:00:05]} Nxc2 {[%emt 0:00:08]} 50. Qxc5 {[%emt 0:00:04]} Ne3 {[%emt 0:00:03]} 51. Bf4 {[%emt 0:00:09]} Qd5 {[%emt 0:00:10]} 52. Qc8+ {[%emt 0:00:06]} Kh7 {[%emt 0:00:02]} 53. Bxe3 {[%emt 0:00:02]} Qxe5+ {[%emt 0:00:01]} 54. Kh1 {[%emt 0:00:09]} dxe3 {[%emt 0:00:07]} 55. Qc2+ {[%emt 0:00:03]} g6 {[%emt 0:00:04]} 56. Qa2 {[%emt 0:00:08]} Qe7 {[%emt 0:00:03]} 57. Qe2 {[%emt 0:00:05]} a4 {[%emt 0:00:03]} 58. Kg1 {[%emt 0:00:03]} a3 {[%emt 0:00:01]} 59. Kf1 {[%emt 0:00:01]} Qf6+ {[%emt 0:00:02]} 60. Ke1 {[%emt 0:00:04]} Qa1+ {[%emt 0:00:01]} 61. Qd1 {[%emt 0:00:03]} Qxd1+ {[%emt 0:00:01]} 62. Kxd1 {[%emt 0:00:02]} a2 {[%emt 0:00:00]} 0-1

[Event "European Online Club-ch-H 2021"]
[Site "Online"]
[Date "2021.03.27"]
[Round "9.16"]
[White "Buhmann, Rainer"]
[Black "Kusiak, Matej"]
[Result "0-1"]
[ECO "E14"]
[WhiteElo "2580"]
[BlackElo "2251"]
[Annotator "ChessBase"]
[PlyCount "54"]
[EventDate "2021.03.27"]
[EventType "team-tourn"]
[EventCountry "NET"]
[SourceTitle "playchess.com"]
[Source "ChessBase"]
[SourceQuality "1"]
[TimeControl "900+5"]

1. d4 {[%emt 0:00:00]} e6 {[%emt 0:00:06]} 2. Nf3 {[%emt 0:00:02]} Nf6 {[%emt 0:00:05]} 3. c4 {[%emt 0:00:02]} Bb4+ {[%emt 0:00:01]} 4. Nbd2 {[%emt 0:00:02]} O-O {[%emt 0:00:07]} 5. e3 {[%emt 0:00:02]} d5 {[%emt 0:00:02]} 6. a3 {[%emt 0:00:03]} Be7 {[%emt 0:00:09]} 7. Bd3 {[%emt 0:00:02]} c5 {[%emt 0:00:11]} 8. b3 {[%emt 0:00:21]} cxd4 {[%emt 0:00:04]} 9. exd4 {[%emt 0:00:02]} Nc6 {[%emt 0:00:05]} 10. Bb2 {[%emt 0:00:05]} b6 {[%emt 0:00:06]} 11. O-O {[%emt 0:00:02]} Bb7 {[%emt 0:00:01]} 12. Rc1 {[%emt 0:00:07]} dxc4 {[%emt 0:00:03]} 13. bxc4 {[%emt 0:00:02]} Rc8 {[%emt 0:00:09]} 14. Qe2 {[%emt 0:00:05]} Qd7 {[%emt 0:03:19]} 15. Rfd1 {[%emt 0:00:22]} Rfd8 {[%emt 0:00:03]} 16. Bb1 {[%emt 0:00:56]} Qe8 {[%emt 0:00:20]} 17. Ne4 {[%emt 0:01:55]} Na5 {[%emt 0:01:05]} 18. Nfg5 {[%emt 0:03:27]} Nxe4 {[%emt 0:01:23]} 19. Nxe4 {[%emt 0:00:03]} Qa4 {[%emt 0:03:53]} 20. d5 {[%emt 0:04:43]} Rxc4 {[%emt 0:01:15]} 21. Qg4 {[%emt 0:01:55]} g6 {[%emt 0:00:59]} 22. Qf4 {[%emt 0:00:43]} Rxe4 {[%emt 0:01:17]} 23. Bxe4 {[%emt 0:00:20]} Bxd5 {[%emt 0:01:23]} 24. Rxd5 {[%emt 0:00:43]} Rxd5 {[%emt 0:00:39]} 25. Qb8+ {[%emt 0:00:18]} Rd8 {[%emt 0:00:06]} 26. Qe5 {[%emt 0:00:02]} Qd1+ {[%emt 0:00:03]} 27. Rxd1 {[%emt 0:00:04]} Rxd1# {[%emt 0:00:01]} 0-1

[Event "European Online Club-ch-H 2021"]
[Site "Online"]
[Date "2021.03.27"]
[Round "9.17"]
[White "Vaisser, Anatoly"]
[Black "Kuzubov, Yuriy"]
[Result "0-1"]
[ECO "E48"]
[WhiteElo "2501"]
[BlackElo "2642"]
[Annotator "ChessBase"]
[PlyCount "64"]
[EventDate "2021.03.27"]
[EventType "team-tourn"]
[EventCountry "NET"]
[SourceTitle "playchess.com"]
[Source "ChessBase"]
[SourceQuality "1"]
[TimeControl "900+5"]

1. d4 {[%emt 0:00:00]} Nf6 {[%emt 0:00:08]} 2. c4 {[%emt 0:00:05]} e6 {[%emt 0:00:01]} 3. Nc3 {[%emt 0:00:02]} Bb4 {[%emt 0:00:02]} 4. e3 {[%emt 0:00:02]} O-O {[%emt 0:00:03]} 5. Bd3 {[%emt 0:00:03]} c5 {[%emt 0:00:05]} 6. Nge2 {[%emt 0:00:07]} d5 {[%emt 0:00:03]} 7. cxd5 {[%emt 0:00:07]} cxd4 {[%emt 0:00:12]} 8. exd4 {[%emt 0:00:03]} Nxd5 {[%emt 0:00:06]} 9. O-O {[%emt 0:00:07]} Nc6 {[%emt 0:00:02]} 10. Be4 {[%emt 0:00:34]} Re8 {[%emt 0:00:55]} 11. Nxd5 {[%emt 0:02:06]} exd5 {[%emt 0:00:03]} 12. Bf3 {[%emt 0:00:02]} Bf5 {[%emt 0:00:27]} 13. Ng3 {[%emt 0:00:28]} Be4 {[%emt 0:00:19]} 14. Bxe4 {[%emt 0:00:50]} dxe4 {[%emt 0:00:03]} 15. a3 {[%emt 0:00:14]} Bf8 {[%emt 0:00:41]} 16. d5 {[%emt 0:00:21]} Ne7 {[%emt 0:00:04]} 17. Nxe4 {[%emt 0:00:58]} Qxd5 {[%emt 0:00:34]} 18. Nc3 {[%emt 0:00:10]} Qc6 {[%emt 0:00:24]} 19. Bf4 {[%emt 0:00:59]} Rad8 {[%emt 0:00:09]} 20. Qb3 {[%emt 0:00:12]} Nf5 {[%emt 0:00:03]} 21. Qb5 {[%emt 0:00:26]} Qc8 {[%emt 0:01:06]} 22. Rac1 {[%emt 0:00:56]} Nd4 {[%emt 0:00:07]} 23. Qa4 {[%emt 0:00:28]} Qg4 {[%emt 0:00:06]} 24. Bc7 {[%emt 0:00:57]} Ne2+ {[%emt 0:00:35]} 25. Kh1 {[%emt 0:00:06]} Qxa4 {[%emt 0:00:02]} 26. Nxa4 {[%emt 0:00:04]} Rd4 {[%emt 0:00:22]} 27. Nc3 {[%emt 0:02:55]} Nxc1 {[%emt 0:00:03]} 28. Rxc1 {[%emt 0:00:02]} Rd2 {[%emt 0:00:02]} 29. Bg3 {[%emt 0:02:46]} Rxb2 {[%emt 0:00:05]} 30. h3 {[%emt 0:00:14]} Bxa3 {[%emt 0:00:04]} 31. Ra1 {[%emt 0:00:04]} Rb3 {[%emt 0:00:13]} 32. Nd5 {[%emt 0:00:42]} Bc5 {[%emt 0:00:08]} 0-1

[Event "European Online Club-ch-H 2021"]
[Site "Online"]
[Date "2021.03.27"]
[Round "9.18"]
[White "Baklan, Vladimir"]
[Black "Kirszenberg, Marc"]
[Result "1-0"]
[ECO "B12"]
[WhiteElo "2587"]
[BlackElo "2130"]
[Annotator "ChessBase"]
[PlyCount "77"]
[EventDate "2021.03.27"]
[EventType "team-tourn"]
[EventCountry "NET"]
[SourceTitle "playchess.com"]
[Source "ChessBase"]
[SourceQuality "1"]
[TimeControl "900+5"]

1. e4 {[%emt 0:00:00]} c6 {[%emt 0:00:02]} 2. d4 {[%emt 0:00:03]} d5 {[%emt 0:00:01]} 3. e5 {[%emt 0:00:01]} Bf5 {[%emt 0:00:03]} 4. Be2 {[%emt 0:00:01]} e6 {[%emt 0:00:02]} 5. Nf3 {[%emt 0:00:03]} c5 {[%emt 0:00:02]} 6. O-O {[%emt 0:00:03]} Nc6 {[%emt 0:00:06]} 7. c3 {[%emt 0:00:04]} cxd4 {[%emt 0:00:03]} 8. Nxd4 {[%emt 0:00:03]} Nge7 {[%emt 0:00:05]} 9. Nxf5 {[%emt 0:00:03]} Nxf5 {[%emt 0:00:01]} 10. Bd3 {[%emt 0:00:01]} Be7 {[%emt 0:00:14]} 11. Qe2 {[%emt 0:00:12]} O-O {[%emt 0:00:23]} 12. Nd2 {[%emt 0:00:09]} a6 {[%emt 0:00:21]} 13. Nf3 {[%emt 0:00:07]} Rc8 {[%emt 0:01:07]} 14. g3 {[%emt 0:00:51]} Qd7 {[%emt 0:00:44]} 15. Rd1 {[%emt 0:00:07]} Rfd8 {[%emt 0:00:40]} 16. h4 {[%emt 0:00:35]} g6 {[%emt 0:00:15]} 17. h5 {[%emt 0:00:14]} Bf8 {[%emt 0:00:15]} 18. Bg5 {[%emt 0:00:09]} Re8 {[%emt 0:00:11]} 19. Kg2 {[%emt 0:00:04]} Bg7 {[%emt 0:00:08]} 20. hxg6 {[%emt 0:00:06]} fxg6 {[%emt 0:00:02]} 21. Rh1 {[%emt 0:00:11]} Rf8 {[%emt 0:00:13]} 22. Rad1 {[%emt 0:00:26]} Rf7 {[%emt 0:00:24]} 23. Bf4 {[%emt 0:00:09]} h5 {[%emt 0:00:20]} 24. Ng5 {[%emt 0:00:34]} Rff8 {[%emt 0:00:06]} 25. Rh3 {[%emt 0:00:39]} Qe8 {[%emt 0:00:15]} 26. Bc2 {[%emt 0:00:25]} Rd8 {[%emt 0:01:40]} 27. Nf3 {[%emt 0:00:56]} Rd7 {[%emt 0:01:54]} 28. a4 {[%emt 0:00:09]} Qb8 {[%emt 0:01:45]} 29. b4 {[%emt 0:00:11]} Qe8 {[%emt 0:00:51]} 30. b5 {[%emt 0:01:29]} Nb8 {[%emt 0:00:23]} 31. Nd4 {[%emt 0:00:20]} Rc7 {[%emt 0:00:28]} 32. Nxf5 {[%emt 0:00:14]} exf5 {[%emt 0:00:12]} 33. Bb3 {[%emt 0:00:09]} Rxc3 {[%emt 0:00:09]} 34. Bxd5+ {[%emt 0:00:02]} Kh7 {[%emt 0:00:08]} 35. Rdh1 {[%emt 0:00:16]} Nd7 {[%emt 0:00:55]} 36. Rxh5+ {[%emt 0:02:03]} gxh5 {[%emt 0:00:03]} 37. Rxh5+ {[%emt 0:00:02]} Kg6 {[%emt 0:00:03]} 38. Rg5+ {[%emt 0:00:01]} Kh6 {[%emt 0:00:36]} 39. Qe1 {[%emt 0:00:09]} 1-0

[Event "European Online Club-ch-H 2021"]
[Site "Online"]
[Date "2021.03.27"]
[Round "9.19"]
[White "Coupet, Pascal"]
[Black "Brodsky, Michail"]
[Result "1/2-1/2"]
[ECO "B50"]
[WhiteElo "2233"]
[BlackElo "2524"]
[Annotator "ChessBase"]
[PlyCount "67"]
[EventDate "2021.03.27"]
[EventType "team-tourn"]
[EventCountry "NET"]
[SourceTitle "playchess.com"]
[Source "ChessBase"]
[SourceQuality "1"]
[TimeControl "900+5"]

1. e4 {[%emt 0:00:00]} c5 {[%emt 0:00:16]} 2. Nf3 {[%emt 0:00:04]} d6 {[%emt 0:00:02]} 3. c3 {[%emt 0:00:02]} Nf6 {[%emt 0:00:03]} 4. Bc4 {[%emt 0:00:02]} Nc6 {[%emt 0:00:08]} 5. d3 {[%emt 0:00:02]} a6 {[%emt 0:00:10]} 6. Bb3 {[%emt 0:00:06]} Bg4 {[%emt 0:00:07]} 7. O-O {[%emt 0:00:05]} e6 {[%emt 0:00:03]} 8. h3 {[%emt 0:00:22]} Bh5 {[%emt 0:00:03]} 9. Be3 {[%emt 0:00:34]} Be7 {[%emt 0:00:06]} 10. Nbd2 {[%emt 0:00:10]} d5 {[%emt 0:00:15]} 11. g4 {[%emt 0:00:26]} Bg6 {[%emt 0:00:03]} 12. e5 {[%emt 0:00:02]} Nd7 {[%emt 0:00:03]} 13. d4 {[%emt 0:00:03]} c4 {[%emt 0:00:07]} 14. Bc2 {[%emt 0:00:03]} b5 {[%emt 0:00:02]} 15. b3 {[%emt 0:01:07]} Nb6 {[%emt 0:00:18]} 16. bxc4 {[%emt 0:00:29]} Nxc4 {[%emt 0:00:44]} 17. a4 {[%emt 0:00:31]} O-O {[%emt 0:00:24]} 18. axb5 {[%emt 0:00:20]} axb5 {[%emt 0:00:03]} 19. Bxg6 {[%emt 0:00:10]} hxg6 {[%emt 0:00:31]} 20. Qb3 {[%emt 0:00:20]} Rb8 {[%emt 0:01:02]} 21. Ra6 {[%emt 0:00:23]} N6a5 {[%emt 0:01:34]} 22. Qa2 {[%emt 0:00:08]} Ra8 {[%emt 0:00:02]} 23. Rxa8 {[%emt 0:00:06]} Qxa8 {[%emt 0:00:02]} 24. Rb1 {[%emt 0:00:14]} Rb8 {[%emt 0:01:24]} 25. Nxc4 {[%emt 0:00:16]} dxc4 {[%emt 0:00:03]} 26. Nd2 {[%emt 0:00:12]} Bd8 {[%emt 0:00:04]} 27. Qa3 {[%emt 0:00:29]} Qd5 {[%emt 0:00:14]} 28. f3 {[%emt 0:01:22]} Nc6 {[%emt 0:00:20]} 29. Ne4 {[%emt 0:00:42]} Be7 {[%emt 0:00:31]} 30. Qa6 {[%emt 0:00:22]} b4 {[%emt 0:00:04]} 31. Kf2 {[%emt 0:00:42]} Rd8 {[%emt 0:01:37]} 32. Qb7 {[%emt 0:01:49]} Rb8 {[%emt 0:01:10]} 33. Qa6 {[%emt 0:00:03]} Rd8 {[%emt 0:00:16]} 34. Qb7 {[%emt 0:01:03]} 1/2-1/2